[Event "Late-Titled-Tuesday-Blitz-May-28-2024"]
[Site "Chess.com"]
[Date "2024.05.28"]
[Round "5"]
[White "Byniolus"]
[Black "LiemLe"]
[Result "0-1"]
[WhiteElo "2731"]
[BlackElo "3031"]
[TimeControl "180+1"]
[EndTime "14:55:04 PDT"]
[Termination "LiemLe won by resignation"]

1. d4 {[%clk 0:03:00.9]} 1... Nf6 {[%clk 0:02:58.5]} 2. Nf3 {[%clk 0:03:01.1]}
2... g6 {[%clk 0:02:57.7]} 3. Bf4 {[%clk 0:03:00.7]} 3... Bg7 {[%clk 0:02:55.6]}
4. e3 {[%clk 0:03:01.2]} 4... O-O {[%clk 0:02:55.2]} 5. Be2 {[%clk 0:03:01.7]}
5... d6 {[%clk 0:02:54.5]} 6. h3 {[%clk 0:03:02.1]} 6... b6 {[%clk 0:02:48.2]}
7. O-O {[%clk 0:03:02]} 7... Bb7 {[%clk 0:02:47.9]} 8. a4 {[%clk 0:03:02.6]}
8... a6 {[%clk 0:02:47]} 9. c3 {[%clk 0:03:03]} 9... c5 {[%clk 0:02:47.4]} 10.
Nbd2 {[%clk 0:03:02.9]} 10... Nbd7 {[%clk 0:02:32.1]} 11. Bh2 {[%clk 0:03:01.4]}
11... Bc6 {[%clk 0:02:27.8]} 12. Bd3 {[%clk 0:02:53.1]} 12... b5 {[%clk
0:02:27.3]} 13. e4 {[%clk 0:02:47.4]} 13... Qb6 {[%clk 0:02:19.7]} 14. e5 {[%clk
0:02:35.4]} 14... dxe5 {[%clk 0:02:05.6]} 15. dxe5 {[%clk 0:02:36.3]} 15... Nd5
{[%clk 0:02:06.1]} 16. axb5 {[%clk 0:02:34]} 16... axb5 {[%clk 0:02:05]} 17.
Rxa8 {[%clk 0:02:34.9]} 17... Bxa8 {[%clk 0:02:01.3]} 18. Qe2 {[%clk 0:02:25.1]}
18... c4 {[%clk 0:01:57.8]} 19. Bc2 {[%clk 0:02:06.8]} 19... Nc5 {[%clk
0:01:57.7]} 20. Nd4 {[%clk 0:02:02.3]} 20... Rd8 {[%clk 0:01:53.9]} 21. Ne4
{[%clk 0:01:49.1]} 21... Bh6 {[%clk 0:01:25.8]} 22. Ra1 {[%clk 0:01:19.4]} 22...
Nf4 {[%clk 0:01:18.6]} 23. Bxf4 {[%clk 0:00:57.9]} 23... Bxf4 {[%clk 0:01:19.5]}
24. Nxc5 {[%clk 0:00:54]} 24... Qxc5 {[%clk 0:01:20.4]} 25. e6 {[%clk
0:00:53.9]} 25... f5 {[%clk 0:01:13.7]} 26. Ra5 {[%clk 0:00:29]} 26... Bc6
{[%clk 0:01:10.2]} 27. g3 {[%clk 0:00:23.6]} 27... Bc7 {[%clk 0:01:04.8]} 28.
Nxc6 {[%clk 0:00:16.3]} 28... Qxc6 {[%clk 0:01:04.4]} 29. Ra1 {[%clk 0:00:16.6]}
29... Rd6 {[%clk 0:00:57.9]} 30. Re1 {[%clk 0:00:15.4]} 30... Qc5 {[%clk
0:00:57.2]} 31. Qe3 {[%clk 0:00:14.9]} 31... Qxe3 {[%clk 0:00:56]} 32. Rxe3
{[%clk 0:00:12]} 32... Rd2 {[%clk 0:00:56.4]} 0-1

[Event "Late-Titled-Tuesday-Blitz-May-28-2024"]
[Site "Chess.com"]
[Date "2024.05.28"]
[Round "5"]
[White "mindprogress732"]
[Black "Arteler"]
[Result "1-0"]
[WhiteElo "2157"]
[BlackElo "2234"]
[TimeControl "180+1"]
[EndTime "14:55:04 PDT"]
[Termination "mindprogress732 won on time"]

1. Nf3 {[%clk 0:02:25.7]} 1... Nf6 {[%clk 0:02:58.6]} 2. b3 {[%clk 0:02:25.6]}
2... g6 {[%clk 0:02:54.6]} 3. Bb2 {[%clk 0:02:25.8]} 3... Bg7 {[%clk 0:02:55.1]}
4. c4 {[%clk 0:02:25.9]} 4... O-O {[%clk 0:02:53]} 5. g3 {[%clk 0:02:26]} 5...
b6 {[%clk 0:02:49.7]} 6. Bg2 {[%clk 0:02:25.5]} 6... Bb7 {[%clk 0:02:50.3]} 7.
O-O {[%clk 0:02:25.9]} 7... c5 {[%clk 0:02:49]} 8. d4 {[%clk 0:02:25.6]} 8...
cxd4 {[%clk 0:02:32.3]} 9. Nxd4 {[%clk 0:02:26.5]} 9... Bxg2 {[%clk 0:02:31.1]}
10. Kxg2 {[%clk 0:02:27.4]} 10... Nc6 {[%clk 0:02:30.6]} 11. Nc3 {[%clk
0:02:27]} 11... Nxd4 {[%clk 0:02:19]} 12. Qxd4 {[%clk 0:02:27.9]} 12... e6
{[%clk 0:01:59.5]} 13. Rad1 {[%clk 0:02:26.4]} 13... d5 {[%clk 0:01:55.8]} 14.
cxd5 {[%clk 0:01:56.2]} 14... Nxd5 {[%clk 0:01:52.7]} 15. Qd2 {[%clk 0:01:53]}
15... Nxc3 {[%clk 0:01:31.8]} 16. Bxc3 {[%clk 0:01:53.9]} 16... Qxd2 {[%clk
0:01:27.6]} 17. Bxd2 {[%clk 0:01:53.7]} 17... Rad8 {[%clk 0:01:27.1]} 18. Bb4
{[%clk 0:01:51.5]} 18... Rfe8 {[%clk 0:01:22.3]} 19. Kf3 {[%clk 0:01:43.7]}
19... Bf6 {[%clk 0:01:13.2]} 20. h4 {[%clk 0:01:42.7]} 20... h5 {[%clk
0:01:08.7]} 21. Ke4 {[%clk 0:01:42.1]} 21... Rd5 {[%clk 0:00:48.4]} 22. Rxd5
{[%clk 0:01:39.5]} 22... exd5+ {[%clk 0:00:48.2]} 23. Kf3 {[%clk 0:01:40]} 23...
Rc8 {[%clk 0:00:41.6]} 24. Rd1 {[%clk 0:01:39.9]} 24... d4 {[%clk 0:00:41.4]}
25. Rd2 {[%clk 0:01:34.3]} 25... a5 {[%clk 0:00:27.3]} 26. Ba3 {[%clk
0:01:33.9]} 26... b5 {[%clk 0:00:26.3]} 27. Bb2 {[%clk 0:01:33.2]} 27... b4
{[%clk 0:00:13]} 28. Ke4 {[%clk 0:01:20.1]} 28... Re8+ {[%clk 0:00:12.3]} 29.
Kd5 {[%clk 0:01:20.2]} 29... Rd8+ {[%clk 0:00:11.8]} 30. Kc5 {[%clk 0:01:17.9]}
30... Rc8+ {[%clk 0:00:05.4]} 31. Kb5 {[%clk 0:01:17.4]} 31... Bd8 {[%clk
0:00:02.7]} 32. Bxd4 {[%clk 0:01:15.9]} 32... Rb8+ {[%clk 0:00:03.3]} 33. Ka6
{[%clk 0:01:13.4]} 33... Ra8+ {[%clk 0:00:02]} 34. Kb7 {[%clk 0:01:13.1]} 34...
Ra7+ {[%clk 0:00:01.3]} 35. Kxa7 {[%clk 0:01:12.7]} 1-0

[Event "Late-Titled-Tuesday-Blitz-May-28-2024"]
[Site "Chess.com"]
[Date "2024.05.28"]
[Round "5"]
[White "Supelyel"]
[Black "BabageldiAnnaberdiyev"]
[Result "0-1"]
[WhiteElo "2467"]
[BlackElo "2599"]
[TimeControl "180+1"]
[EndTime "14:55:06 PDT"]
[Termination "BabageldiAnnaberdiyev won by resignation"]

1. c4 {[%clk 0:03:00.9]} 1... e6 {[%clk 0:03:00.9]} 2. Nc3 {[%clk 0:02:54.9]}
2... d5 {[%clk 0:03:00.7]} 3. cxd5 {[%clk 0:02:54.8]} 3... exd5 {[%clk
0:03:01.6]} 4. d4 {[%clk 0:02:55.5]} 4... f5 {[%clk 0:03:01.2]} 5. Bf4 {[%clk
0:02:45.8]} 5... Nf6 {[%clk 0:03:00.2]} 6. e3 {[%clk 0:02:45.7]} 6... Bd6 {[%clk
0:02:59.9]} 7. Nf3 {[%clk 0:02:39.9]} 7... O-O {[%clk 0:03:00.2]} 8. Bd3 {[%clk
0:02:39.6]} 8... c6 {[%clk 0:02:58.5]} 9. O-O {[%clk 0:02:39.4]} 9... Ne4 {[%clk
0:02:57.3]} 10. Qb3 {[%clk 0:02:36.7]} 10... Kh8 {[%clk 0:02:54.5]} 11. Rac1
{[%clk 0:02:31.8]} 11... Qe7 {[%clk 0:02:36.8]} 12. Rfe1 {[%clk 0:01:43.6]}
12... Nd7 {[%clk 0:02:34.5]} 13. a3 {[%clk 0:01:41.1]} 13... a5 {[%clk
0:02:32.9]} 14. Qc2 {[%clk 0:01:08.9]} 14... h6 {[%clk 0:02:30.9]} 15. Na4
{[%clk 0:01:05.7]} 15... g5 {[%clk 0:02:25.6]} 16. Bxd6 {[%clk 0:01:04.4]} 16...
Qxd6 {[%clk 0:02:26.5]} 17. Nc5 {[%clk 0:01:04.3]} 17... g4 {[%clk 0:02:11.2]}
18. Nxd7 {[%clk 0:01:03.4]} 18... Bxd7 {[%clk 0:02:08.8]} 19. Ne5 {[%clk
0:01:03.6]} 19... Be8 {[%clk 0:01:47]} 20. Bxe4 {[%clk 0:01:01.4]} 20... fxe4
{[%clk 0:01:47.9]} 21. Nxg4 {[%clk 0:00:47.2]} 21... Rg8 {[%clk 0:01:43.7]} 22.
Ne5 {[%clk 0:00:41.6]} 22... Qe6 {[%clk 0:01:36.4]} 23. Kh1 {[%clk 0:00:39.6]}
23... Bh5 {[%clk 0:01:32.8]} 24. Rg1 {[%clk 0:00:36.1]} 24... Raf8 {[%clk
0:01:32.4]} 25. Rcf1 {[%clk 0:00:30.4]} 25... Rf5 {[%clk 0:01:11.2]} 26. Qc3
{[%clk 0:00:26.9]} 26... Be2 {[%clk 0:01:09.5]} 27. f4 {[%clk 0:00:21.2]} 27...
exf3 {[%clk 0:01:02.2]} 28. Rxf3 {[%clk 0:00:19.8]} 28... Bxf3 {[%clk
0:01:01.8]} 29. gxf3 {[%clk 0:00:20.2]} 29... Rxg1+ {[%clk 0:00:56.4]} 30. Kxg1
{[%clk 0:00:21.1]} 30... Qg8+ {[%clk 0:00:56.2]} 31. Kf2 {[%clk 0:00:20.8]}
31... Rg5 {[%clk 0:00:57.1]} 32. Ke2 {[%clk 0:00:19.3]} 32... Rg1 {[%clk
0:00:53.8]} 33. Qc2 {[%clk 0:00:17.1]} 33... Rg2+ {[%clk 0:00:52]} 0-1

[Event "Late-Titled-Tuesday-Blitz-May-28-2024"]
[Site "Chess.com"]
[Date "2024.05.28"]
[Round "5"]
[White "NMChessToImpress"]
[Black "Denmark2015"]
[Result "1-0"]
[WhiteElo "2326"]
[BlackElo "2563"]
[TimeControl "180+1"]
[EndTime "14:55:08 PDT"]
[Termination "NMChessToImpress won by checkmate"]

1. e4 {[%clk 0:02:58.3]} 1... e6 {[%clk 0:03:00.9]} 2. d4 {[%clk 0:02:58.3]}
2... d5 {[%clk 0:03:01.4]} 3. e5 {[%clk 0:02:59]} 3... c5 {[%clk 0:03:01.4]} 4.
c3 {[%clk 0:02:59.7]} 4... Nc6 {[%clk 0:03:01.8]} 5. Nf3 {[%clk 0:03:00.3]} 5...
Nge7 {[%clk 0:03:02.2]} 6. Na3 {[%clk 0:02:58.6]} 6... Bd7 {[%clk 0:02:55.6]} 7.
Bd3 {[%clk 0:02:56.8]} 7... cxd4 {[%clk 0:02:39.9]} 8. cxd4 {[%clk 0:02:56.7]}
8... Nf5 {[%clk 0:02:40.3]} 9. Nc2 {[%clk 0:02:54.6]} 9... Be7 {[%clk
0:02:39.3]} 10. O-O {[%clk 0:02:54.2]} 10... Qb6 {[%clk 0:02:38]} 11. Be3 {[%clk
0:02:44.4]} 11... O-O {[%clk 0:02:32.5]} 12. a3 {[%clk 0:02:21.1]} 12... a5
{[%clk 0:02:31.5]} 13. Rb1 {[%clk 0:02:15.8]} 13... a4 {[%clk 0:02:30.2]} 14. g4
{[%clk 0:01:44.4]} 14... Nh6 {[%clk 0:02:03.5]} 15. h3 {[%clk 0:01:41.7]} 15...
Na5 {[%clk 0:01:53.6]} 16. Nb4 {[%clk 0:01:09.2]} 16... Kh8 {[%clk 0:01:45.6]}
17. Bc2 {[%clk 0:00:56.4]} 17... Bb5 {[%clk 0:01:40.1]} 18. Bxa4 {[%clk
0:00:35.5]} 18... Bxf1 {[%clk 0:01:36.4]} 19. Kxf1 {[%clk 0:00:33.1]} 19... Ng8
{[%clk 0:01:34.5]} 20. Bc2 {[%clk 0:00:31.9]} 20... Nc4 {[%clk 0:01:32.1]} 21.
Qd3 {[%clk 0:00:27.7]} 21... g6 {[%clk 0:01:31.3]} 22. Bg5 {[%clk 0:00:27.1]}
22... Qd8 {[%clk 0:01:27.8]} 23. h4 {[%clk 0:00:20.4]} 23... f6 {[%clk
0:01:25.1]} 24. h5 {[%clk 0:00:16]} 24... Qe8 {[%clk 0:01:08.7]} 25. Kg2 {[%clk
0:00:10.8]} 25... fxg5 {[%clk 0:01:06.5]} 26. Rh1 {[%clk 0:00:08.8]} 26... Nxb2
{[%clk 0:00:59.1]} 27. hxg6 {[%clk 0:00:06.6]} 27... Nh6 {[%clk 0:00:46.4]} 28.
g7+ {[%clk 0:00:05.7]} 28... Kg8 {[%clk 0:00:42.9]} 29. Qxh7+ {[%clk 0:00:06.4]}
29... Kf7 {[%clk 0:00:43.3]} 30. g8=Q# {[%clk 0:00:06.9]} 1-0

[Event "Late-Titled-Tuesday-Blitz-May-28-2024"]
[Site "Chess.com"]
[Date "2024.05.28"]
[Round "5"]
[White "Dacean99"]
[Black "Rodalquilar"]
[Result "0-1"]
[WhiteElo "2594"]
[BlackElo "2811"]
[TimeControl "180+1"]
[EndTime "14:55:10 PDT"]
[Termination "Rodalquilar won by resignation"]

1. e4 {[%clk 0:03:00.9]} 1... d5 {[%clk 0:03:00.3]} 2. exd5 {[%clk 0:03:00.3]}
2... Qxd5 {[%clk 0:03:01.2]} 3. Nf3 {[%clk 0:03:00.4]} 3... Bg4 {[%clk
0:03:00.4]} 4. Be2 {[%clk 0:03:00.8]} 4... Nc6 {[%clk 0:03:00.9]} 5. O-O {[%clk
0:03:00.2]} 5... O-O-O {[%clk 0:02:58.5]} 6. h3 {[%clk 0:03:00.4]} 6... Bh5
{[%clk 0:02:58]} 7. d4 {[%clk 0:03:00.8]} 7... Bxf3 {[%clk 0:02:29.6]} 8. Bxf3
{[%clk 0:03:01.7]} 8... Qxd4 {[%clk 0:02:30.1]} 9. Nd2 {[%clk 0:03:01.5]} 9...
Ne5 {[%clk 0:02:20.1]} 10. Qe2 {[%clk 0:03:01]} 10... Nf6 {[%clk 0:02:14.1]} 11.
Bxb7+ {[%clk 0:02:32.1]} 11... Kxb7 {[%clk 0:02:12.8]} 12. Qb5+ {[%clk
0:02:32.6]} 12... Ka8 {[%clk 0:01:57.2]} 13. Nb3 {[%clk 0:02:31.3]} 13... Qd5
{[%clk 0:01:54.7]} 14. Qa6 {[%clk 0:02:23.6]} 14... Qc4 {[%clk 0:01:28.5]} 15.
Qa5 {[%clk 0:02:21.2]} 15... Rd5 {[%clk 0:01:18.6]} 16. Qe1 {[%clk 0:02:19.9]}
16... e6 {[%clk 0:01:12.9]} 17. Be3 {[%clk 0:02:17.9]} 17... Bb4 {[%clk
0:01:08.5]} 18. c3 {[%clk 0:02:17.9]} 18... Bd6 {[%clk 0:01:08.8]} 19. Bd4
{[%clk 0:02:07.9]} 19... c5 {[%clk 0:01:04.4]} 20. Be3 {[%clk 0:02:01.3]} 20...
Rd8 {[%clk 0:00:53.7]} 21. Na5 {[%clk 0:02:00.9]} 21... Qb5 {[%clk 0:00:46.6]}
22. b4 {[%clk 0:02:00]} 22... cxb4 {[%clk 0:00:45.1]} 23. Nb3 {[%clk 0:01:59.7]}
23... Nd3 {[%clk 0:00:39.8]} 24. Qe2 {[%clk 0:01:58.7]} 24... bxc3 {[%clk
0:00:38.5]} 25. Nd4 {[%clk 0:01:55.7]} 25... Qc4 {[%clk 0:00:27.6]} 26. Rfd1
{[%clk 0:01:53.1]} 26... Nb2 {[%clk 0:00:22.7]} 27. Qf3 {[%clk 0:01:46.7]} 27...
Nxd1 {[%clk 0:00:22.3]} 28. Rxd1 {[%clk 0:01:47.6]} 28... Bc5 {[%clk 0:00:18.6]}
29. Kh2 {[%clk 0:01:41.6]} 29... c2 {[%clk 0:00:14.1]} 30. Nxc2 {[%clk
0:01:26.1]} 30... Qxc2 {[%clk 0:00:14.2]} 31. Rd2 {[%clk 0:01:26]} 31... Qe4
{[%clk 0:00:10.4]} 32. Rxd5 {[%clk 0:01:24.2]} 32... Rxd5 {[%clk 0:00:08.4]} 33.
Qe2 {[%clk 0:01:23.5]} 33... Bxe3 {[%clk 0:00:08]} 34. fxe3 {[%clk 0:01:24.4]}
34... Qe5+ {[%clk 0:00:07.6]} 35. Kg1 {[%clk 0:01:22.8]} 35... Qc3 {[%clk
0:00:05.3]} 36. Kh2 {[%clk 0:01:16.8]} 36... Ne4 {[%clk 0:00:05.6]} 37. Qa6
{[%clk 0:01:15.8]} 37... Qc7+ {[%clk 0:00:05]} 38. g3 {[%clk 0:01:11.9]} 38...
Rd2+ {[%clk 0:00:04.7]} 39. Kh1 {[%clk 0:01:11.6]} 39... Qc1+ {[%clk 0:00:04.8]}
0-1

[Event "Late-Titled-Tuesday-Blitz-May-28-2024"]
[Site "Chess.com"]
[Date "2024.05.28"]
[Round "5"]
[White "LUISMIGUELOV"]
[Black "howitzer14"]
[Result "0-1"]
[WhiteElo "2233"]
[BlackElo "3018"]
[TimeControl "180+1"]
[EndTime "14:55:16 PDT"]
[Termination "howitzer14 won by resignation"]

1. d4 {[%clk 0:02:55]} 1... Nf6 {[%clk 0:02:55.1]} 2. c3 {[%clk 0:02:54.3]} 2...
d5 {[%clk 0:02:51.2]} 3. Bg5 {[%clk 0:02:53.3]} 3... Ne4 {[%clk 0:02:45.2]} 4.
h4 {[%clk 0:02:53.2]} 4... Bf5 {[%clk 0:02:35.2]} 5. Nd2 {[%clk 0:02:52.6]} 5...
h6 {[%clk 0:02:34.5]} 6. Nxe4 {[%clk 0:02:50.9]} 6... Bxe4 {[%clk 0:02:35]} 7.
Bf4 {[%clk 0:02:50.2]} 7... e6 {[%clk 0:02:35.6]} 8. Qb3 {[%clk 0:02:49.4]} 8...
Qc8 {[%clk 0:02:35.5]} 9. f3 {[%clk 0:02:45.1]} 9... Bh7 {[%clk 0:02:34.2]} 10.
Nh3 {[%clk 0:02:23.1]} 10... c5 {[%clk 0:02:31.7]} 11. Bxb8 {[%clk 0:02:17.7]}
11... Rxb8 {[%clk 0:02:25.1]} 12. Qb5+ {[%clk 0:02:15]} 12... Qc6 {[%clk
0:02:19.7]} 13. e3 {[%clk 0:02:13.8]} 13... Bd6 {[%clk 0:02:14.6]} 14. Nf2
{[%clk 0:02:10.5]} 14... O-O {[%clk 0:02:00]} 15. Qxc6 {[%clk 0:02:06.7]} 15...
bxc6 {[%clk 0:02:00.9]} 16. b3 {[%clk 0:02:05.7]} 16... cxd4 {[%clk 0:01:54.1]}
17. cxd4 {[%clk 0:02:04.5]} 17... c5 {[%clk 0:01:51.4]} 18. Bd3 {[%clk
0:02:03.4]} 18... cxd4 {[%clk 0:01:46.4]} 19. exd4 {[%clk 0:01:59.1]} 19... Rfc8
{[%clk 0:01:29.9]} 20. Bxh7+ {[%clk 0:01:45.5]} 20... Kxh7 {[%clk 0:01:30.8]}
21. Kd2 {[%clk 0:01:44.7]} 21... Bb4+ {[%clk 0:01:13.3]} 22. Kd1 {[%clk
0:01:34.7]} 22... Bc3 {[%clk 0:01:09.5]} 23. Rc1 {[%clk 0:01:25.4]} 23... Bxd4
{[%clk 0:01:10.4]} 24. Nd3 {[%clk 0:01:19.9]} 24... Kg6 {[%clk 0:01:05.6]} 25.
h5+ {[%clk 0:01:15.6]} 25... Kf6 {[%clk 0:01:03.4]} 26. Kd2 {[%clk 0:01:13.8]}
26... e5 {[%clk 0:00:56.7]} 27. g4 {[%clk 0:01:13.3]} 27... Ke6 {[%clk
0:00:56.4]} 28. Rxc8 {[%clk 0:01:07]} 28... Rxc8 {[%clk 0:00:56.1]} 29. Rc1
{[%clk 0:01:07.4]} 29... Rxc1 {[%clk 0:00:56.4]} 30. Kxc1 {[%clk 0:01:05.7]}
30... f5 {[%clk 0:00:51.5]} 31. Kd2 {[%clk 0:01:04]} 31... fxg4 {[%clk 0:00:51]}
32. fxg4 {[%clk 0:01:02.5]} 32... a5 {[%clk 0:00:46.7]} 33. a3 {[%clk
0:01:01.5]} 33... e4 {[%clk 0:00:43.5]} 34. Nf4+ {[%clk 0:01:00.2]} 34... Ke5
{[%clk 0:00:42.2]} 35. Ng6+ {[%clk 0:01:00]} 35... Kd6 {[%clk 0:00:42.1]} 36. b4
{[%clk 0:00:59.3]} 36... axb4 {[%clk 0:00:42.7]} 37. axb4 {[%clk 0:00:59.2]}
37... Bf6 {[%clk 0:00:43.6]} 38. Ke3 {[%clk 0:00:58.2]} 38... Kc6 {[%clk
0:00:37.6]} 39. Nf4 {[%clk 0:00:49.3]} 39... Bg5 {[%clk 0:00:37.3]} 0-1

[Event "Late-Titled-Tuesday-Blitz-May-28-2024"]
[Site "Chess.com"]
[Date "2024.05.28"]
[Round "5"]
[White "OIAM03"]
[Black "BenchGM"]
[Result "0-1"]
[WhiteElo "2029"]
[BlackElo "2230"]
[TimeControl "180+1"]
[EndTime "14:55:17 PDT"]
[Termination "BenchGM won on time"]

1. e4 {[%clk 0:02:59.4]} 1... c5 {[%clk 0:02:59.8]} 2. c3 {[%clk 0:02:58.9]}
2... d5 {[%clk 0:02:58.4]} 3. exd5 {[%clk 0:02:56.8]} 3... Qxd5 {[%clk
0:02:59.3]} 4. Nf3 {[%clk 0:02:54.6]} 4... Nc6 {[%clk 0:02:58.6]} 5. d4 {[%clk
0:02:53.6]} 5... Bg4 {[%clk 0:02:58.2]} 6. Be2 {[%clk 0:02:45.1]} 6... e6 {[%clk
0:02:57.8]} 7. h3 {[%clk 0:02:36.1]} 7... Bh5 {[%clk 0:02:56.6]} 8. dxc5 {[%clk
0:02:35.5]} 8... Qxd1+ {[%clk 0:02:55.8]} 9. Bxd1 {[%clk 0:02:34.6]} 9... Bxc5
{[%clk 0:02:56]} 10. O-O {[%clk 0:02:34.4]} 10... Nge7 {[%clk 0:02:55.7]} 11.
Nbd2 {[%clk 0:02:32.2]} 11... O-O {[%clk 0:02:54.8]} 12. Ne4 {[%clk 0:02:31.2]}
12... Bb6 {[%clk 0:02:53.4]} 13. Bf4 {[%clk 0:02:10.2]} 13... Nd5 {[%clk
0:02:52.4]} 14. Bg3 {[%clk 0:02:05.9]} 14... Rad8 {[%clk 0:02:47.7]} 15. c4
{[%clk 0:01:57.8]} 15... Nf6 {[%clk 0:02:32.2]} 16. Nxf6+ {[%clk 0:01:55.1]}
16... gxf6 {[%clk 0:02:33.1]} 17. a3 {[%clk 0:01:40.7]} 17... a5 {[%clk
0:02:25]} 18. c5 {[%clk 0:01:34.2]} 18... Bxc5 {[%clk 0:02:20.5]} 19. Rc1 {[%clk
0:01:27.7]} 19... Bb6 {[%clk 0:02:14.7]} 20. Ba4 {[%clk 0:01:16.6]} 20... Nd4
{[%clk 0:02:07.5]} 21. Nxd4 {[%clk 0:01:05.9]} 21... Bxd4 {[%clk 0:02:08.4]} 22.
b3 {[%clk 0:00:38.6]} 22... e5 {[%clk 0:02:06.6]} 23. Rc7 {[%clk 0:00:29.8]}
23... b6 {[%clk 0:02:06.5]} 24. Kh2 {[%clk 0:00:27.1]} 24... Be2 {[%clk
0:01:59]} 25. Re1 {[%clk 0:00:26.5]} 25... Bd3 {[%clk 0:01:59]} 26. Bc6 {[%clk
0:00:23.7]} 26... Rc8 {[%clk 0:01:56.9]} 27. Rxc8 {[%clk 0:00:21.7]} 27... Rxc8
{[%clk 0:01:57.8]} 28. Bb7 {[%clk 0:00:14.4]} 28... Rc3 {[%clk 0:01:56.8]} 29.
f4 {[%clk 0:00:13.6]} 29... Rxb3 {[%clk 0:01:49.7]} 30. fxe5 {[%clk 0:00:13.1]}
30... fxe5 {[%clk 0:01:48.4]} 31. Bxe5 {[%clk 0:00:12.9]} 31... Bxe5+ {[%clk
0:01:44.6]} 32. Rxe5 {[%clk 0:00:12.7]} 32... Rxa3 {[%clk 0:01:44.4]} 33. Re3
{[%clk 0:00:04.3]} 33... Rb3 {[%clk 0:01:38.6]} 34. Bd5 {[%clk 0:00:03.3]} 34...
Rc3 {[%clk 0:01:18.4]} 35. Be4 {[%clk 0:00:02.1]} 35... Bxe4 {[%clk 0:01:08.7]}
36. Rxc3 {[%clk 0:00:02]} 36... Bd5 {[%clk 0:01:04.8]} 0-1

[Event "Late-Titled-Tuesday-Blitz-May-28-2024"]
[Site "Chess.com"]
[Date "2024.05.28"]
[Round "5"]
[White "Orest_Vovk"]
[Black "MikeSailer"]
[Result "0-1"]
[WhiteElo "2509"]
[BlackElo "2152"]
[TimeControl "180+1"]
[EndTime "14:55:21 PDT"]
[Termination "MikeSailer won by resignation"]

1. h4 {[%clk 0:02:47.5]} 1... b6 {[%clk 0:02:57.4]} 2. h5 {[%clk 0:02:47.9]}
2... Bb7 {[%clk 0:02:56.1]} 3. Nc3 {[%clk 0:02:48.3]} 3... e5 {[%clk 0:02:50.1]}
4. d4 {[%clk 0:02:47.8]} 4... exd4 {[%clk 0:02:46.9]} 5. Qxd4 {[%clk 0:02:48.7]}
5... Nc6 {[%clk 0:02:46.8]} 6. Qe4+ {[%clk 0:02:48.4]} 6... Qe7 {[%clk
0:02:43.3]} 7. Qxe7+ {[%clk 0:02:47.2]} 7... Bxe7 {[%clk 0:02:43.1]} 8. h6
{[%clk 0:02:47.3]} 8... g6 {[%clk 0:02:41.1]} 9. Bf4 {[%clk 0:02:45]} 9... O-O-O
{[%clk 0:02:39.6]} 10. O-O-O {[%clk 0:02:41.6]} 10... Bf6 {[%clk 0:02:32.6]} 11.
Nd5 {[%clk 0:02:38.8]} 11... Be5 {[%clk 0:02:24.8]} 12. Nf3 {[%clk 0:02:33.9]}
12... Bxf4+ {[%clk 0:02:23.9]} 13. Nxf4 {[%clk 0:02:34.8]} 13... f6 {[%clk
0:02:18.2]} 14. e3 {[%clk 0:02:33.7]} 14... Ne5 {[%clk 0:02:11.2]} 15. Nxe5
{[%clk 0:02:32.2]} 15... fxe5 {[%clk 0:02:11.7]} 16. Nd5 {[%clk 0:02:30.1]}
16... Rf8 {[%clk 0:01:58.3]} 17. f3 {[%clk 0:02:26]} 17... c6 {[%clk 0:01:51.8]}
18. Nc3 {[%clk 0:02:23.7]} 18... d5 {[%clk 0:01:50.8]} 19. Nb1 {[%clk
0:02:14.4]} 19... Rf6 {[%clk 0:01:37.6]} 20. c4 {[%clk 0:02:13.8]} 20... Ne7
{[%clk 0:01:33.9]} 21. Nc3 {[%clk 0:02:11.5]} 21... Kb8 {[%clk 0:01:27.6]} 22.
Kb1 {[%clk 0:02:07.4]} 22... Rd8 {[%clk 0:01:21.5]} 23. cxd5 {[%clk 0:02:05]}
23... cxd5 {[%clk 0:01:20.4]} 24. Bd3 {[%clk 0:01:58.5]} 24... Nf5 {[%clk
0:01:13.8]} 25. Bxf5 {[%clk 0:01:57.5]} 25... gxf5 {[%clk 0:01:06.4]} 26. Rh5
{[%clk 0:01:53.8]} 26... a6 {[%clk 0:01:00.2]} 27. f4 {[%clk 0:01:48.8]} 27...
exf4 {[%clk 0:00:55.8]} 28. exf4 {[%clk 0:01:47.9]} 28... d4 {[%clk 0:00:52.7]}
29. g3 {[%clk 0:01:43]} 29... Rfd6 {[%clk 0:00:46.3]} 30. Ne2 {[%clk 0:01:06.4]}
30... Be4+ {[%clk 0:00:46]} 31. Ka1 {[%clk 0:00:59.6]} 31... Bf3 {[%clk
0:00:45.3]} 32. Rh2 {[%clk 0:00:54.9]} 32... d3 {[%clk 0:00:44]} 33. Nc3 {[%clk
0:00:52.5]} 33... Bxd1 {[%clk 0:00:43.4]} 34. Nxd1 {[%clk 0:00:52.6]} 34... d2
{[%clk 0:00:39.6]} 35. b3 {[%clk 0:00:38]} 35... Rc6 {[%clk 0:00:34.1]} 36. Kb2
{[%clk 0:00:37]} 36... Rc1 {[%clk 0:00:33.6]} 37. Rxd2 {[%clk 0:00:34.6]} 37...
Rxd1 {[%clk 0:00:33.7]} 38. Re2 {[%clk 0:00:32.9]} 38... R1d2+ {[%clk
0:00:33.7]} 0-1

[Event "Late-Titled-Tuesday-Blitz-May-28-2024"]
[Site "Chess.com"]
[Date "2024.05.28"]
[Round "5"]
[White "Shuvalov"]
[Black "CheckBits"]
[Result "1-0"]
[WhiteElo "2560"]
[BlackElo "2393"]
[TimeControl "180+1"]
[EndTime "14:55:22 PDT"]
[Termination "Shuvalov won on time"]

1. d4 {[%clk 0:03:00.9]} 1... d5 {[%clk 0:02:52.7]} 2. c4 {[%clk 0:03:00.6]}
2... dxc4 {[%clk 0:02:50.1]} 3. Nf3 {[%clk 0:02:58.7]} 3... a6 {[%clk
0:02:48.9]} 4. a4 {[%clk 0:02:55.8]} 4... Nf6 {[%clk 0:02:47.1]} 5. e3 {[%clk
0:02:53.8]} 5... e6 {[%clk 0:02:46.7]} 6. Bxc4 {[%clk 0:02:53.2]} 6... Be7
{[%clk 0:02:43.5]} 7. O-O {[%clk 0:02:52.3]} 7... O-O {[%clk 0:02:44]} 8. b3
{[%clk 0:02:51.3]} 8... c5 {[%clk 0:02:43.7]} 9. Bb2 {[%clk 0:02:50.4]} 9... Nc6
{[%clk 0:02:41.3]} 10. dxc5 {[%clk 0:02:47.3]} 10... Qxd1 {[%clk 0:02:31.1]} 11.
Rxd1 {[%clk 0:02:46.8]} 11... Bxc5 {[%clk 0:02:31]} 12. Nbd2 {[%clk 0:02:43.5]}
12... b6 {[%clk 0:02:23.8]} 13. Kf1 {[%clk 0:02:32.4]} 13... Bb7 {[%clk
0:02:21.5]} 14. Bxf6 {[%clk 0:02:22.3]} 14... gxf6 {[%clk 0:02:19.9]} 15. Ne4
{[%clk 0:02:22.9]} 15... Be7 {[%clk 0:02:09.7]} 16. Nd6 {[%clk 0:02:23]} 16...
Bxd6 {[%clk 0:02:05.2]} 17. Rxd6 {[%clk 0:02:23.9]} 17... Rfd8 {[%clk
0:02:03.1]} 18. Rad1 {[%clk 0:02:22.6]} 18... Rxd6 {[%clk 0:01:57.1]} 19. Rxd6
{[%clk 0:02:23.5]} 19... Rd8 {[%clk 0:01:50.6]} 20. Rxd8+ {[%clk 0:02:22.9]}
20... Nxd8 {[%clk 0:01:50.8]} 21. Nd2 {[%clk 0:02:19.9]} 21... Kf8 {[%clk
0:01:48.5]} 22. Bd3 {[%clk 0:02:13.4]} 22... Nc6 {[%clk 0:00:45.2]} 23. Be4
{[%clk 0:01:57.6]} 23... Na5 {[%clk 0:00:35]} 24. b4 {[%clk 0:01:37.1]} 24...
Nc6 {[%clk 0:00:18.5]} 25. Nc4 {[%clk 0:01:25.6]} 25... f5 {[%clk 0:00:08.1]}
26. Bf3 {[%clk 0:01:10.4]} 26... b5 {[%clk 0:00:04.3]} 27. axb5 {[%clk 0:01:07]}
27... axb5 {[%clk 0:00:04]} 28. Nd6 {[%clk 0:01:07.2]} 28... Ba8 {[%clk
0:00:02.8]} 29. Nxb5 {[%clk 0:01:04.7]} 29... Ke7 {[%clk 0:00:01.1]} 30. Nd4
{[%clk 0:00:40.5]} 30... Nxd4 {[%clk 0:00:00.3]} 31. exd4 {[%clk 0:00:41.4]} 1-0